bitfinex/quotes_SOLUSD_20250829
["timestamp","ask_amount","ask_price","bid_price","bid_amount"]
[1756498235299,8.87221446,202.35,202.34,0.16077471]
[1756498235896,0.67,202.39,202.34,0.16077471]
[1756498236097,8.87221446,202.36,202.34,0.16077471]
[1756498236416,8.87221446,202.35,202.34,0.16077471]
[1756498237195,14.48414675,202.35,202.34,0.16077471]
[1756498237528,13.16060307,202.35,202.34,0.16077471]
[1756498237740,18.10253536,202.35,202.34,0.16077471]
[1756498238107,4.28838861,202.35,202.34,0.16077471]
[1756498238427,13.16060307,202.35,202.34,0.16077471]
[1756498239109,8.87221446,202.35,202.34,0.16077471]
[1756498240750,14.48414675,202.35,202.34,0.16077471]
[1756498240919,3.61799342,202.35,202.34,0.16077471]
[1756498241253,8.87221446,202.35,202.34,0.16077471]
[1756498241446,13.16002378,202.35,202.34,0.16077471]
[1756498241746,13.59559401,202.34,202.31,0.03]
[1756498241926,31.34002293,202.32,202.31,0.03]
[1756498242116,34.95783225,202.32,202.31,0.03]
[1756498242317,35.62783225,202.32,202.31,0.03]
[1756498242623,26.0,202.25,202.23,0.158]
[1756498242808,12.48712867,202.24,202.23,0.158]
[1756498243014,4.28491421,202.24,202.23,0.158]
[1756498243215,13.15712867,202.24,202.23,0.158]
[1756498244215,9.54221446,202.24,202.23,0.158]
[1756498244941,14.48683471,202.24,202.23,0.158]
[1756498246039,18.09373052,202.24,202.23,0.158]
[1756498246265,57.34002293,202.21,202.12,1.8471269]
[1756498246428,13.59559401,202.2,202.12,1.8471269]
[1756498246634,8.87221446,202.13,202.12,1.8471269]
[1756498246939,42.0,202.2,202.12,6.7946828]
[1756498247136,8.87221446,202.13,202.12,6.7946828]
[1756498247327,8.87221446,202.16,202.12,6.7946828]
[1756498247537,8.87221446,202.14,202.13,0.66]
[1756498248059,8.87221446,202.15,202.13,0.66]
[1756498248560,4.94460547,202.25,202.18,0.03]
[1756498248561,13.59559401,202.25,202.18,0.03]
[1756498248728,4.94462025,202.24,202.18,0.03]
[1756498249652,8.87221446,202.19,202.18,0.03]
[1756498250656,0.67,202.24,202.18,0.03]
[1756498250829,8.87221446,202.19,202.18,0.03]
[1756498251557,9.54221446,202.19,202.18,0.03]
[1756498252051,8.87221446,202.19,202.18,0.03]
[1756498253046,8.87221446,202.19,202.18,0.69]
[1756498253242,41.76,202.27,202.18,0.69]
[1756498253478,0.67,202.28,202.18,0.69]
[1756498253777,8.87221446,202.23,202.18,9.56221446]
[1756498253948,8.87221446,202.23,202.19,0.66]
[1756498254152,8.87221446,202.2,202.18,0.03]
[1756498254382,8.87221446,202.19,202.18,0.03]
[1756498257151,8.87221446,202.2,202.18,0.69]
[1756498257352,8.87221446,202.21,202.18,0.69]
[1756498257548,8.87221446,202.21,202.19,0.66]
[1756498257949,8.87221446,202.2,202.19,0.66]
[1756498258399,8.87221446,202.21,202.19,0.66]
[1756498258846,8.87221446,202.2,202.19,0.66]
[1756498259046,8.87221446,202.2,202.19,5.60584301]
[1756498259267,8.87221446,202.21,202.19,5.60584301]
[1756498259671,5.61421299,202.26,202.19,5.60584301]
[1756498259868,8.87221446,202.21,202.19,5.60584301]
[1756498260262,13.59559401,202.32,202.2,9.53221446]
[1756498260481,8.87221446,202.31,202.25,8.87221446]
[1756498260667,12.35382153,202.37,202.26,9.59221446]
[1756498260668,0.68,202.36,202.26,9.59221446]
[1756498260865,0.68,202.39,202.3,4.94315373]
[1756498261084,8.87221446,202.35,202.3,14.53536819]
[1756498261275,50.79221446,202.44,202.31,0.72]
[1756498261479,8.87221446,202.42,202.36,8.87221446]
[1756498261672,8.87221446,202.43,202.37,8.87221446]
[1756498261885,8.87221446,202.43,202.37,0.72]
[1756498262191,8.87221446,202.43,202.37,9.59221446]
[1756498262490,8.87221446,202.43,202.38,8.87221446]
[1756498262690,0.68,202.46,202.39,9.59221446]
[1756498262884,8.87221446,202.45,202.4,4.94071146]
[1756498263082,8.87221446,202.46,202.41,0.72]
[1756498263281,0.68,202.5,202.4,13.81292592]
[1756498263282,8.87221446,202.48,202.42,9.59221446]
[1756498263999,26.0,202.49,202.42,0.72]
[1756498264205,8.87221446,202.47,202.42,0.72]
[1756498264493,8.87221446,202.44,202.38,13.81320118]
[1756498265186,8.87221446,202.47,202.41,8.87221446]
[1756498265390,8.87221446,202.47,202.42,8.87221446]
[1756498265573,8.87221446,202.46,202.41,0.72]
[1756498266092,8.87221446,202.42,202.35,5.66193229]
[1756498266393,0.68,202.45,202.35,5.66193229]
[1756498266394,8.87221446,202.4,202.35,14.53414675]
[1756498266577,0.68,202.45,202.36,0.72]
[1756498266782,8.87221446,202.42,202.36,9.59221446]
[1756498267292,8.87221446,202.41,202.36,5.66167232]
[1756498267489,8.87221446,202.41,202.37,0.72]
[1756498268992,8.87221446,202.4,202.37,0.72]
[1756498269377,8.87221446,202.42,202.37,9.59221446]
[1756498269579,8.87221446,202.39,202.33,5.66242079]
[1756498269779,8.87221446,202.34,202.32,41.8]
[1756498270086,8.87221446,202.33,202.28,41.8]
[1756498270290,8.87221446,202.32,202.28,0.72]
[1756498271189,0.68,202.36,202.28,5.66351661]
[1756498271396,8.87221446,202.33,202.28,14.53573107]
[1756498271694,8.87221446,202.33,202.29,0.72]
[1756498272297,8.87221446,202.33,202.28,4.94351661]
[1756498272491,8.87221446,202.33,202.28,5.66351661]
[1756498272675,8.87221446,202.32,202.28,5.66351661]
[1756498273077,8.87221446,202.34,202.3,4.94315373]
[1756498273271,8.87221446,202.33,202.3,4.94315373]
[1756498273698,8.87221446,202.34,202.3,4.94315373]
[1756498273999,8.87221446,202.34,202.28,8.87221446]
[1756498275014,8.87221446,202.34,202.29,8.87221446]
[1756498275700,8.87221446,202.34,202.28,13.81585693]
[1756498276899,8.87221446,202.34,202.28,26.17496311]
[1756498277511,8.48687309,202.34,202.28,25.78962174]
[1756498277919,8.48687309,202.33,202.28,25.78962174]
[1756498278525,8.48687309,202.33,202.28,26.26962174]
[1756498279117,20.0,202.35,202.28,26.26962174]
[1756498279118,8.48687309,202.34,202.29,8.96687309]
[1756498279332,12.45274108,202.36,202.31,8.48687309]
[1756498279630,12.45274108,202.36,202.32,0.48]
[1756498280318,12.45274108,202.36,202.33,0.48]
[1756498281220,12.45274108,202.36,202.34,4.94217653]
[1756498281423,12.45274108,202.36,202.35,8.48687309]
[1756498281629,0.68,202.43,202.35,8.96687309]
[1756498281791,0.06,202.48,202.34,17.29761786]
[1756498281792,20.68,202.47,202.41,8.48687309]
[1756498281992,20.0,202.44,202.4,8.48687309]
[1756498282322,9.16687309,202.47,202.42,8.48687309]
[1756498282500,20.06,202.48,202.38,0.48]
[1756498282501,28.54687309,202.48,202.38,0.48]
[1756498282693,0.68,202.46,202.42,8.48687309]
[1756498282894,0.06,202.48,202.44,8.48687309]
[1756498283098,20.06,202.48,202.45,4.93949123]
[1756498283304,8.48687309,202.46,202.38,17.29414045]
[1756498283507,8.48687309,202.44,202.38,25.78101354]
[1756498283704,9.16687309,202.44,202.38,13.42807281]
[1756498283906,9.16687309,202.44,202.38,4.94119972]
[1756498283907,8.48687309,202.43,202.38,4.94119972]
[1756498284241,8.48687309,202.39,202.3,36.66]
[1756498284518,8.48687309,202.36,202.29,4.94339809]
[1756498284721,9.16687309,202.35,202.29,13.43027118]
[1756498285090,8.48687309,202.33,202.23,0.48]
[1756498285288,8.48687309,202.33,202.28,8.48687309]
[1756498285507,29.16687309,202.34,202.28,8.48687309]
[1756498285817,8.48687309,202.33,202.28,8.48687309]
[1756498286016,9.16687309,202.35,202.3,8.48687309]
[1756498286600,8.48687309,202.35,202.3,8.48687309]
[1756498286799,0.68,202.34,202.3,8.48687309]
[1756498287015,20.0,202.36,202.3,8.48687309]
[1756498287202,8.48687309,202.35,202.31,4.94290939]
[1756498287514,9.16687309,202.34,202.3,4.94310685]
[1756498287719,20.0,202.36,202.3,4.94310685]
[1756498287720,9.16687309,202.33,202.3,4.94310685]
[1756498287917,8.48687309,202.34,202.3,4.94310685]
[1756498288093,20.68,202.36,202.3,4.94310685]
[1756498288094,8.48687309,202.35,202.3,4.94310685]
[1756498288301,20.0,202.36,202.31,8.48687309]
[1756498288498,12.29599571,202.37,202.32,8.48687309]
[1756498288700,12.29599571,202.37,202.34,8.48687309]
[1756498289213,8.48687309,202.35,202.26,26.48]
[1756498289412,29.16687309,202.38,202.32,8.48687309]
[1756498289609,8.48687309,202.36,202.31,8.48687309]
[1756498289811,9.16687309,202.36,202.3,8.48687309]
[1756498290227,9.16687309,202.36,202.31,8.48687309]
[1756498290422,9.16687309,202.35,202.29,8.48687309]
[1756498290816,8.48687309,202.31,202.27,4.94383833]
[1756498291213,8.48687309,202.31,202.26,4.94413131]
[1756498291533,8.48687309,202.31,202.26,13.4310044]
[1756498292118,8.48687309,202.32,202.26,25.79133269]
[1756498292806,0.71,202.33,202.27,8.48687309]
[1756498293007,0.71,202.35,202.28,8.48687309]
[1756498293224,20.0,202.36,202.28,0.48]
[1756498293413,20.71,202.38,202.31,8.48687309]
[1756498294032,8.48687309,202.38,202.32,8.48687309]
[1756498294408,12.2018379,202.39,202.33,8.48687309]
[1756498294608,9.19687309,202.38,202.3,0.48]
[1756498295216,20.68871099,202.39,202.31,4.94290939]
[1756498295742,12.2018379,202.39,202.37,8.48687309]
[1756498296315,12.2018379,202.39,202.38,8.48687309]
[1756498296623,12.2018379,202.39,202.37,8.48687309]
[1756498296933,12.2018379,202.39,202.35,0.48]
[1756498296934,12.2018379,202.39,202.35,0.49419322]
[1756498297229,12.2018379,202.39,202.38,13.42807281]
[1756498297406,12.2018379,202.39,202.38,13.90807281]
[1756498298018,0.77,202.46,202.38,26.26107211]
[1756498298239,0.06,202.46,202.39,0.97409555]
[1756498298437,0.06,202.46,202.38,58.73419902]
[1756498298646,0.06,202.46,202.41,8.48687309]
[1756498299151,0.06,202.46,202.42,4.94022329]
[1756498299519,0.06,202.46,202.36,24.70759963]
[1756498299520,8.48687309,202.43,202.34,12.35518587]
[1756498299722,8.48687309,202.39,202.33,8.48687309]
[1756498299940,9.19687309,202.39,202.33,8.48687309]
[1756498300136,0.71,202.39,202.33,8.48687309]
[1756498300325,9.19687309,202.39,202.33,8.48687309]
[1756498300528,8.48687309,202.36,202.26,0.48]
[1756498300732,8.48687309,202.36,202.31,8.48687309]
[1756498300933,0.71,202.35,202.31,8.48687309]
[1756498302440,0.71,202.35,202.3,13.43002682]
[1756498302826,0.71,202.34,202.3,13.43002682]
[1756498303040,0.71,202.37,202.3,13.43002682]
[1756498303219,8.48687309,202.36,202.3,13.43002682]
[1756498303421,0.71,202.37,202.29,12.3583774]
[1756498303422,0.71,202.37,202.31,8.48687309]
[1756498303638,8.48687309,202.37,202.32,8.48687309]
[1756498303827,0.06,202.35,202.32,8.48687309]
[1756498304026,0.06,202.35,202.33,8.48687309]
[1756498304243,0.06,202.35,202.32,8.48687309]
[1756498304541,0.06,202.35,202.3,0.48]
[1756498304741,0.06,202.35,202.32,8.48687309]
[1756498305243,0.06,202.35,202.32,0.48]
[1756498305454,0.06,202.35,202.33,4.94242079]
[1756498306431,0.06,202.35,202.34,8.96687309]
[1756498307253,0.06,202.35,202.34,8.48687309]
[1756498307452,0.06,202.35,202.34,13.42904962]
[1756498307750,0.06,202.38,202.34,26.26449095]
[1756498307954,0.06,202.38,202.37,8.48687309]
[1756498308336,0.06,202.38,202.34,58.63761786]
[1756498308534,0.06,202.38,202.36,8.48687309]
[1756498309531,0.06,202.38,202.37,4.94144388]
[1756498310242,0.06,202.38,202.37,13.42831697]
[1756498311645,9.25687309,202.38,202.34,4.94217653]
[1756498311833,9.19687309,202.37,202.34,4.94217653]
[1756498312035,9.19687309,202.36,202.34,4.94217653]
[1756498312237,0.71,202.35,202.34,4.94217653]
[1756498312537,0.71,202.35,202.31,4.94290939]
[1756498312743,0.71,202.35,202.31,25.78705597]
[1756498312947,0.06,202.38,202.34,8.48687309]
[1756498313444,0.06,202.38,202.35,8.48687309]
[1756498313642,0.06,202.38,202.36,4.94168808]
[1756498314658,0.06,202.38,202.36,13.42856117]
[1756498315065,0.06,202.38,202.36,4.94168808]
[1756498315642,0.06,202.38,202.36,8.48687309]
[1756498315842,0.71,202.37,202.35,8.48687309]
[1756498316054,0.06,202.38,202.35,8.48687309]
[1756498316258,0.06,202.38,202.33,4.94242079]
[1756498316259,0.71,202.37,202.33,4.94242079]
[1756498316571,8.48687309,202.34,202.24,0.48]
[1756498316778,9.19687309,202.33,202.27,8.48687309]
[1756498317065,9.19687309,202.35,202.29,8.48687309]
[1756498317364,20.0,202.36,202.32,8.48687309]
[1756498317552,20.0,202.36,202.32,4.94266508]
[1756498317754,20.71,202.36,202.32,4.94266508]
[1756498318067,0.71,202.35,202.32,4.94266508]
[1756498318644,9.19687309,202.34,202.32,4.94266508]
[1756498318845,20.71,202.34,202.32,4.94266508]
[1756498319153,20.0,202.36,202.32,4.94266508]
[1756498319351,9.19687309,202.35,202.32,4.94266508]
[1756498319652,29.19687309,202.34,202.28,8.48687309]
[1756498320164,20.71,202.34,202.3,8.48687309]
[1756498320369,0.06,202.38,202.33,8.48687309]
[1756498320575,0.06,202.38,202.37,8.48687309]
[1756498321261,0.06,202.38,202.36,8.48687309]
[1756498321462,9.20687309,202.37,202.32,8.48687309]
[1756498321668,0.06,202.38,202.35,8.48687309]
[1756498322140,0.06,202.38,202.37,8.48687309]
[1756498323943,0.06,202.38,202.37,13.42831697]
[1756498325278,1e-08,202.38,202.37,13.42831697]
[1756498325445,1e-08,202.38,202.37,14.40246135]
[1756498325643,1e-08,202.38,202.37,26.48]
[1756498325847,1e-08,202.38,202.37,34.96687309]
[1756498326077,1e-08,202.38,202.37,30.94144388]
[1756498326245,1e-08,202.38,202.37,34.48687309]
[1756498326445,1e-08,202.38,202.37,8.48687309]
[1756498326653,0.72000001,202.38,202.33,13.42929388]
[1756498326947,8.48687309,202.36,202.33,4.94242079]
[1756498327147,0.72,202.35,202.29,41.21]
[1756498327343,0.72,202.35,202.3,13.43001772]
[1756498327547,0.72,202.35,202.31,8.48687309]
[1756498327759,0.72,202.35,202.32,8.48687309]
[1756498327959,0.72,202.35,202.3,4.94314463]
[1756498327960,0.72,202.35,202.31,8.48687309]
[1756498328168,0.72,202.34,202.32,4.94266508]
[1756498328364,20.0,202.36,202.32,4.94266508]
[1756498328566,0.72,202.36,202.32,13.42953817]
[1756498328776,20.72000001,202.38,202.34,8.48687309]
[1756498329368,0.72,202.37,202.33,8.48687309]
[1756498329573,0.72,202.37,202.32,17.29932779]
[1756498329574,0.72,202.36,202.32,4.94266508]
[1756498329883,20.72,202.35,202.32,4.94266508]
[1756498330089,0.72,202.34,202.31,4.94290939]
[1756498331470,0.72,202.34,202.29,17.33172716]
[1756498331679,0.72,202.33,202.29,17.33172716]
[1756498331877,0.72,202.32,202.29,17.33172716]
[1756498332576,0.72,202.31,202.29,4.97339809]
[1756498332767,9.20687309,202.31,202.29,4.97339809]
[1756498333187,9.20687309,202.3,202.29,0.03]
[1756498333379,9.20687309,202.3,202.26,0.03]
[1756498333694,8.48687309,202.27,202.26,0.03]
[1756498334193,9.20687309,202.27,202.26,0.03]
[1756498335688,0.72,202.27,202.26,0.03]
[1756498335989,9.20687309,202.27,202.26,0.03]
[1756498338179,20.0,202.28,202.26,0.03]
[1756498338497,8.48687309,202.27,202.26,0.03]
[1756498339584,28.48687309,202.28,202.26,0.03]
[1756498339783,9.20687309,202.27,202.26,0.03]
[1756498340490,8.48687309,202.27,202.26,0.03]
[1756498341592,9.20687309,202.27,202.26,0.03]
[1756498341774,0.72,202.27,202.26,0.03]
[1756498341980,9.20687309,202.27,202.26,0.03]
[1756498342493,20.0,202.28,202.26,0.03]
[1756498342494,20.0,202.33,202.26,9.02687309]
[1756498342699,8.48687309,202.37,202.32,8.48687309]
[1756498342903,0.72000001,202.38,202.32,8.48687309]
[1756498343104,1e-08,202.38,202.34,8.48687309]
[1756498343417,1e-08,202.38,202.35,4.94193229]
[1756498343585,1e-08,202.38,202.37,8.48687309]
[1756498344483,1e-08,202.38,202.35,5.45193229]
[1756498344684,1e-08,202.38,202.37,8.48687309]
[1756498344885,1e-08,202.38,202.36,1.0041688]
[1756498345188,1e-08,202.38,202.37,8.99687309]
[1756498345400,1e-08,202.38,202.34,17.29728494]
[1756498345705,1e-08,202.38,202.35,8.48687309]
[1756498345881,1e-08,202.38,202.36,8.48687309]
[1756498346598,1e-08,202.38,202.35,8.48687309]
[1756498346987,1e-08,202.38,202.34,25.78415803]
[1756498347313,1e-08,202.38,202.34,17.29728494]
[1756498347489,9.2068731,202.38,202.34,17.29728494]
[1756498347834,0.72000001,202.38,202.34,17.29728494]
[1756498347992,1e-08,202.38,202.34,17.29728494]
[1756498348807,1e-08,202.38,202.35,8.48687309]
[1756498349309,1e-08,202.38,202.36,8.48687309]
[1756498349886,1e-08,202.38,202.37,4.94144388]
[1756498350083,1e-08,202.38,202.37,13.93831697]
[1756498351606,1e-08,202.38,202.37,5.45144388]
[1756498351802,1e-08,202.38,202.37,13.93831697]
[1756498352793,1e-08,202.38,202.37,14.43246135]
[1756498352994,1e-08,202.38,202.37,55.39246135]
[1756498353203,1e-08,202.38,202.37,14.43246135]
[1756498353401,1e-08,202.38,202.37,55.39246135]
[1756498354217,0.77,202.48,202.4,26.0]
[1756498354520,0.77,202.48,202.37,67.21949248]
[1756498354521,28.48687309,202.46,202.37,67.21949248]
[1756498354708,9.19687309,202.45,202.39,49.44687309]
[1756498354885,20.0,202.43,202.39,40.96]
[1756498355084,0.71,202.42,202.38,8.48687309]
[1756498355315,8.48687309,202.4,202.37,17.2950536]
[1756498355623,9.19687309,202.39,202.35,4.94183711]
[1756498355803,8.48687309,202.36,202.27,14.849648]
[1756498356015,20.0,202.34,202.3,17.30067799]
[1756498356204,0.71,202.33,202.3,17.30067799]
[1756498356991,20.0,202.34,202.3,25.78755108]
[1756498357299,20.71,202.34,202.3,25.78755108]
[1756498358111,20.0,202.36,202.31,8.48687309]
[1756498358320,20.71,202.36,202.31,8.48687309]
[1756498358796,0.71,202.35,202.31,8.48687309]
[1756498359198,0.71,202.35,202.32,4.94266508]
[1756498360012,20.0,202.36,202.33,8.48687309]
[1756498360317,0.71,202.35,202.32,17.29932779]
[1756498360714,8.48687309,202.33,202.32,4.94266508]
[1756498360909,20.71,202.34,202.32,4.94266508]
[1756498360910,28.48687309,202.34,202.32,4.94266508]
[1756498361218,0.71,202.33,202.29,12.3582716]
[1756498361432,0.71,202.33,202.29,12.3882716]
[1756498361719,28.48687309,202.34,202.29,20.87514469]
[1756498361898,0.71,202.33,202.29,20.87514469]
[1756498362220,0.71,202.33,202.29,12.3882716]
[1756498362394,0.06,202.38,202.29,12.3882716]
[1756498362395,28.48687309,202.31,202.29,0.03]
[1756498362593,9.19687309,202.3,202.29,0.03]
[1756498363098,0.71,202.3,202.29,0.03]
[1756498363301,9.19687309,202.3,202.29,0.03]
[1756498363902,20.0,202.31,202.29,0.03]
[1756498364111,0.71,202.3,202.29,0.03]
[1756498364702,9.19687309,202.3,202.29,0.03]
[1756498365509,0.71,202.3,202.29,0.03]
[1756498365819,9.19687309,202.32,202.29,0.03]
[1756498366301,0.71,202.31,202.29,0.03]
[1756498366921,20.0,202.33,202.29,8.51687309]
[1756498367303,20.0,202.33,202.3,8.48687309]
[1756498367626,20.0,202.35,202.31,8.48687309]
[1756498367822,20.71,202.35,202.31,8.48687309]
[1756498368006,28.48687309,202.37,202.31,8.48687309]
[1756498368711,0.77,202.38,202.34,8.48687309]
[1756498369020,8.54687309,202.38,202.35,4.94193229]
[1756498369205,0.77,202.38,202.35,4.94193229]
[1756498369398,0.06,202.38,202.35,4.94193229]
[1756498369807,8.48687309,202.36,202.35,4.94193229]
[1756498370010,9.19687309,202.36,202.35,4.94193229]
[1756498370412,20.0,202.37,202.35,4.94193229]
[1756498370610,0.06,202.38,202.36,8.48687309]
[1756498370809,0.06,202.38,202.37,4.94144388]
[1756498371630,20.0,202.36,202.33,4.94242079]
[1756498371823,20.71,202.36,202.33,4.94242079]
[1756498372029,20.0,202.36,202.33,4.94242079]
[1756498372906,20.0,202.36,202.32,20.8429304]
[1756498373810,20.71,202.36,202.32,20.8429304]
[1756498374208,20.0,202.36,202.32,20.8429304]
[1756498374407,8.48687309,202.33,202.29,0.03]
[1756498374625,8.48687309,202.32,202.29,0.03]
[1756498374818,0.71,202.32,202.29,0.03]
[1756498375015,20.0,202.34,202.31,8.48687309]
[1756498375228,20.71,202.34,202.31,8.48687309]
[1756498375600,20.71,202.34,202.3,8.48687309]
[1756498376017,29.19687309,202.36,202.31,8.48687309]
[1756498376225,0.71,202.35,202.31,8.48687309]
[1756498376622,20.0,202.36,202.31,8.48687309]
[1756498376926,20.71,202.36,202.31,8.48687309]
[1756498377228,0.71,202.35,202.32,12.35666271]
[1756498377402,20.0,202.36,202.32,12.35666271]
[1756498377604,20.71,202.36,202.32,20.8435358]
[1756498377827,20.71,202.36,202.32,12.35666271]
[1756498378224,20.0,202.36,202.32,20.8435358]
[1756498378735,0.06,202.38,202.35,8.48687309]
[1756498379030,0.06,202.38,202.37,8.48687309]
[1756498379222,29.25687309,202.38,202.3,84.54314899]
[1756498379421,28.48687309,202.36,202.3,13.43002208]
[1756498379616,20.0,202.36,202.31,8.48687309]
[1756498379821,20.0,202.36,202.33,8.48687309]
[1756498380213,20.0,202.36,202.3,4.94314899]
[1756498380413,29.25687309,202.38,202.3,17.30103332]
[1756498380714,0.06,202.38,202.35,8.48687309]
[1756498381247,8.48687309,202.37,202.35,4.94193229]
[1756498381419,0.06,202.38,202.35,13.42880538]
[1756498381623,0.06,202.38,202.35,4.94193229]
[1756498382035,0.71,202.37,202.35,4.94193229]
[1756498382241,9.19687309,202.36,202.35,4.94193229]
[1756498382450,0.71,202.36,202.35,4.94193229]
[1756498382621,9.19687309,202.36,202.33,4.94242079]
[1756498382941,9.19687309,202.35,202.33,4.94242079]
[1756498383139,9.19687309,202.35,202.3,17.30047557]
[1756498383329,9.19523414,202.35,202.3,17.30047557]
[1756498383641,28.48523414,202.31,202.29,0.03]
[1756498383830,9.19523414,202.3,202.29,0.03]
[1756498384024,6.01672382,202.3,202.29,0.03]
[1756498384636,6.01672382,202.3,202.29,4.97339809]
[1756498385040,0.71,202.3,202.29,0.03]
[1756498385237,6.01672382,202.3,202.29,0.03]
[1756498385549,6.01585937,202.3,202.29,0.03]
[1756498386012,9.19941918,202.3,202.29,0.03]
[1756498390246,27.73816692,202.3,202.29,0.03]
[1756498390435,22.79501319,202.3,202.29,0.03]
[1756498390644,27.73816692,202.3,202.29,0.03]
[1756498391422,9.19941918,202.3,202.29,0.03]
[1756498394677,8.48941918,202.3,202.29,0.03]
[1756498396951,9.19941918,202.3,202.29,0.03]
[1756498397131,0.71,202.3,202.29,0.03]
[1756498397334,9.19941918,202.3,202.29,0.03]
[1756498400229,68.69816692,202.3,202.29,0.03]
[1756498400430,46.0,202.27,202.26,0.03]
[1756498400766,54.48941918,202.27,202.26,0.03]
[1756498400943,55.19941918,202.27,202.26,0.03]
[1756498401249,55.19941918,202.27,202.24,0.03]
[1756498401250,20.0,202.25,202.24,0.03]
[1756498401453,69.44941918,202.25,202.24,0.03]
[1756498401627,70.15941918,202.25,202.24,0.03]
[1756498405245,83.75501319,202.25,202.24,0.03]
[1756498405460,83.76523614,202.25,202.24,0.03]
[1756498406056,80.57750917,202.25,202.24,0.03]
[1756498406377,85.52188494,202.25,202.24,0.03]
[1756498406736,80.57750917,202.25,202.24,0.03]
[1756498406940,66.98191516,202.25,202.24,0.03]
[1756498407863,80.57750917,202.25,202.24,0.03]
[1756498408582,20.0,202.13,202.11,0.57]
[1756498408936,20.0,202.11,202.09,84.69422759]
[1756498410559,20.0,202.13,202.1,0.57]
[1756498411372,20.0,202.13,202.11,4.9478007]
[1756498415862,25.31191516,202.13,202.1,4.97804552]
[1756498416057,25.31191516,202.13,202.1,5.54804552]
[1756498416269,20.0,202.13,202.11,0.57]
[1756498416453,20.0,202.13,202.12,0.57]
[1756498416771,20.0,202.15,202.12,0.57]
[1756498416962,20.0,202.15,202.13,0.57]
[1756498417164,20.0,202.15,202.14,0.57]
[1756498417367,20.0,202.18,202.14,5.88191516]
[1756498417674,20.0,202.18,202.15,5.88191516]
[1756498417878,20.0,202.18,202.16,4.94657696]
[1756498418175,25.31191516,202.18,202.16,4.94657696]
[1756498418358,5.31191516,202.17,202.16,4.94657696]
[1756498418549,25.31191516,202.18,202.16,4.94657696]
[1756498418751,5.31191516,202.17,202.16,4.94657696]
[1756498418972,6.00191516,202.17,202.16,4.94657696]
[1756498420958,25.31191516,202.18,202.13,17.31558897]
[1756498421166,20.0,202.15,202.13,22.62750413]
[1756498421559,20.0,202.15,202.13,17.31558897]
[1756498421763,5.31191516,202.14,202.13,4.94731113]
[1756498421963,20.69,202.15,202.13,4.94731113]
[1756498422574,20.0,202.15,202.13,4.94731113]
[1756498423176,20.0,202.15,202.12,4.9475559]
[1756498423367,20.0,202.15,202.12,10.82947106]
[1756498424277,20.0,202.15,202.12,4.9475559]
[1756498424575,26.00191516,202.15,202.12,4.9475559]
[1756498424765,20.69,202.15,202.12,4.9475559]
[1756498425761,20.0,202.15,202.11,17.31730245]
[1756498425977,20.0,202.15,202.11,23.19921761]
[1756498426283,20.0,202.15,202.12,5.88191516]
[1756498426482,20.0,202.15,202.12,0.57]
[1756498426858,26.00191516,202.15,202.11,4.9478007]
[1756498427368,20.69,202.15,202.11,4.9478007]
[1756498427884,0.69,202.14,202.11,4.9478007]
[1756498428301,20.69,202.14,202.11,4.9478007]
[1756498428598,20.0,202.14,202.11,4.9478007]
[1756498429687,20.0,202.14,202.12,5.88191516]
[1756498430390,20.0,202.14,202.13,4.94731113]
[1756498430687,0.69,202.22,202.13,23.19750413]
[1756498430892,5.31191516,202.23,202.18,5.31191516]
[1756498431188,6.00191516,202.26,202.2,5.31191516]
[1756498431571,5.31191516,202.22,202.14,0.57]
[1756498431882,6.00191516,202.22,202.16,5.31191516]
[1756498432099,6.00191516,202.22,202.17,5.31191516]
[1756498432255,5.37191516,202.23,202.18,5.31191516]
[1756498432460,5.37191516,202.23,202.2,4.94559841]
[1756498432461,0.75,202.23,202.2,4.94559841]
[1756498432672,0.06,202.23,202.2,10.25751357]
[1756498433285,0.69,202.22,202.2,4.94559841]
[1756498434474,0.06,202.23,202.2,10.25751357]